fUST/lending_fUST_20251228
["ID","MTS","AMOUNT","RATE_DAILY","PERIOD"]
[399919699,1766874437107,-44.30558422,0.000144,2]
[399919700,1766874437128,-261.95180866,0.00014407,2]
[399919701,1766874437148,-2246.70156308,0.00014411,2]
[399919702,1766874439127,-960.42865075,0.00014411,2]
[399919705,1766874522478,2843.24001941,0.000143,7]
[399919706,1766874534088,509.53448908,0.00013959,2]
[399919707,1766874536528,917.16208034,0.00013959,2]
[399919708,1766874539045,1630.51036505,0.00013959,2]
[399919709,1766874548098,-5372.92168182,0.00014409,2]
[399919710,1766874553909,156.0865486,0.00014141,2]
[399919711,1766874554122,150.0,0.00014141,2]
[399919712,1766874628552,329.77125199,0.00013959,2]
[399919713,1766874629938,150.0,6.462e-05,2]
[399919714,1766874630357,150.0,6.769e-05,2]
[399919715,1766874630768,150.0,7.077e-05,2]
[399919716,1766874631184,150.0,7.385e-05,2]
[399919717,1766874631219,593.58825359,0.00013959,2]
[399919749,1766874631769,-294.49516258,0.00014409,2]
[399919751,1766874631782,-982.34345966,0.00014409,2]
[399919782,1766874633730,1055.26800637,0.00013959,2]
[399919805,1766874637785,-143.10948211,0.00014409,2]
[399919807,1766874637795,-153.97825646,0.00014409,2]
[399919818,1766874637898,-472.02174354,0.00014409,2]
[399919820,1766874637909,-259.71049488,0.0001441,2]
[399919822,1766874637920,-499.59839456,0.0001441,2]
[399919846,1766874640097,-700.40160544,0.0001441,2]
[399919847,1766874640108,-288.75846316,0.00014411,2]
[399919848,1766874640118,-500.0,0.00014411,2]
[399919849,1766874640128,-500.0,0.00014411,2]
[399919850,1766874640138,-500.0,0.00014411,2]
[399919851,1766874640148,-500.0,0.00014411,2]
[399919852,1766874640158,-582.35059875,0.00014411,2]
[399919853,1766874640168,-500.0,0.00014411,2]
[399919854,1766874640177,-500.0,0.00014411,2]
[399919855,1766874640187,-500.0,0.00014411,2]
[399919856,1766874640197,-500.0,0.00014411,2]
[399919857,1766874640206,-199.27146096,0.00014411,2]
[399919858,1766874640218,-500.0,0.00014411,2]
[399919859,1766874640227,-500.0,0.00014411,2]
[399919860,1766874640236,-500.0,0.00014411,2]
[399919861,1766874640246,-500.0,0.00014411,2]
[399919862,1766874640256,-500.0,0.00014411,2]
[399919863,1766874640266,-500.0,0.00014411,2]
[399919864,1766874640276,-500.0,0.00014411,2]
[399919865,1766874640286,-500.0,0.00014411,2]
[399919866,1766874640296,-500.0,0.00014411,2]
[399919867,1766874640306,-500.0,0.00014411,2]
[399919868,1766874640315,-500.0,0.00014411,2]
[399919869,1766874640326,-500.0,0.00014411,2]
[399919870,1766874640336,-500.0,0.00014411,2]
[399919871,1766874640345,-500.0,0.00014411,2]
[399919872,1766874640355,-500.0,0.00014411,2]
[399919873,1766874640365,-500.0,0.00014411,2]
[399919874,1766874640375,-500.0,0.00014411,2]
[399919875,1766874640385,-500.0,0.00014411,2]
[399919876,1766874640395,-500.0,0.00014411,2]
[399919877,1766874640453,-500.0,0.00014411,2]
[399919878,1766874640463,-500.0,0.00014411,2]
[399919879,1766874640473,-500.0,0.00014411,2]
[399919880,1766874640482,-500.0,0.00014411,2]
[399919881,1766874640491,-500.0,0.00014411,2]
[399919882,1766874640503,-500.0,0.00014411,2]
[399919883,1766874640513,-500.0,0.00014411,2]
[399919884,1766874640522,-500.0,0.00014411,2]
[399919885,1766874640532,-500.0,0.00014411,2]
[399919886,1766874640542,-500.0,0.00014411,2]
[399919887,1766874640551,-500.0,0.00014411,2]
[399919888,1766874640561,-500.0,0.00014411,2]
[399919889,1766874640570,-500.0,0.00014411,2]
[399919890,1766874640580,-500.0,0.00014411,2]
[399919891,1766874640589,-500.0,0.00014411,2]
[399919892,1766874640599,-500.0,0.00014411,2]
[399919893,1766874640608,-500.0,0.00014411,2]
[399919894,1766874640618,-500.0,0.00014411,2]
[399919895,1766874640627,-300.0,0.00014411,2]
[399919896,1766874640636,-500.0,0.00014411,2]
[399919897,1766874640646,-500.0,0.00014411,2]
[399919898,1766874640655,-300.0,0.00014411,2]
[399919899,1766874640665,-500.0,0.00014411,2]
[399919900,1766874640679,-500.0,0.00014411,2]
[399919901,1766874640688,-500.0,0.00014411,2]
[399919902,1766874640697,-500.0,0.00014411,2]
[399919903,1766874640707,-500.0,0.00014411,2]
[399919904,1766874640716,-500.0,0.00014411,2]
[399919905,1766874640725,-500.0,0.00014411,2]
[399919906,1766874640735,-500.0,0.00014411,2]
[399919907,1766874640744,-500.0,0.00014411,2]
[399919908,1766874640754,-500.0,0.00014411,2]
[399919909,1766874640763,-500.0,0.00014411,2]
[399919910,1766874640772,-500.0,0.00014411,2]
[399919911,1766874640781,-500.0,0.00014411,2]
[399919912,1766874640791,-500.0,0.00014411,2]
[399919913,1766874640800,-500.0,0.00014411,2]
[399919914,1766874640809,-500.0,0.00014411,2]
[399919915,1766874640818,-500.0,0.00014411,2]
[399919916,1766874640827,-500.0,0.00014411,2]
[399919917,1766874640838,-500.0,0.00014411,2]
[399919918,1766874640847,-500.0,0.00014411,2]
[399919919,1766874640857,-500.0,0.00014411,2]
[399919920,1766874640867,-500.0,0.00014411,2]
[399919921,1766874640877,-500.0,0.00014411,2]
[399919922,1766874640886,-500.0,0.00014411,2]
[399919923,1766874640896,-500.0,0.00014411,2]
[399919924,1766874640906,-500.0,0.00014411,2]
[399919925,1766874640915,-500.0,0.00014411,2]
[399919926,1766874640925,-500.0,0.00014411,2]
[399919927,1766874640935,-500.0,0.00014411,2]
[399919928,1766874640944,-500.0,0.00014411,2]
[399919929,1766874640954,-500.0,0.00014411,2]
[399919930,1766874640963,-500.0,0.00014411,2]
[399919931,1766874640973,-500.0,0.00014411,2]
[399919932,1766874640983,-500.0,0.00014411,2]
[399919933,1766874640993,-500.0,0.00014411,2]
[399919934,1766874641003,-500.0,0.00014411,2]
[399919935,1766874641012,-500.0,0.00014411,2]
[399919936,1766874641022,-500.0,0.00014411,2]
[399919937,1766874641031,-500.0,0.00014411,2]
[399919938,1766874641040,-500.0,0.00014411,2]
[399919939,1766874641049,-500.0,0.00014411,2]
[399919940,1766874641059,-500.0,0.00014411,2]
[399919941,1766874641068,-500.0,0.00014411,2]
[399919942,1766874641077,-500.0,0.00014411,2]
[399919943,1766874641089,-500.0,0.00014411,2]
[399919944,1766874641099,-500.0,0.00014411,2]
[399919945,1766874641108,-500.0,0.00014411,2]
[399919946,1766874641117,-500.0,0.00014411,2]
[399919947,1766874641126,-500.0,0.00014411,2]
[399919948,1766874641136,-500.0,0.00014411,2]
[399919949,1766874641146,-500.0,0.00014411,2]
[399919950,1766874641155,-500.0,0.00014411,2]
[399919951,1766874641165,-526.76018692,0.00014411,2]
[399919952,1766874641175,-500.0,0.00014411,2]
[399919953,1766874641184,-500.0,0.00014411,2]
[399919954,1766874641194,-500.0,0.00014411,2]
[399919955,1766874641203,-500.0,0.00014411,2]
[399919956,1766874641213,-500.0,0.00014411,2]
[399919957,1766874641223,-500.0,0.00014411,2]
[399919958,1766874641233,-500.0,0.00014411,2]
[399919959,1766874641243,-500.0,0.00014411,2]
[399919960,1766874641253,-500.0,0.00014411,2]
[399919961,1766874641263,-500.0,0.00014411,2]
[399919962,1766874641273,-500.0,0.00014411,2]
[399919963,1766874641283,-500.0,0.00014411,2]
[399919964,1766874641292,-500.0,0.00014411,2]
[399919965,1766874641302,-500.0,0.00014411,2]
[399919966,1766874641311,-500.0,0.00014411,2]
[399919967,1766874641321,-500.0,0.00014411,2]
[399919968,1766874641331,-500.0,0.00014411,2]
[399919969,1766874641341,-500.0,0.00014411,2]
[399919970,1766874641351,-500.0,0.00014411,2]
[399919971,1766874641360,-500.0,0.00014411,2]
[399919972,1766874641369,-500.0,0.00014411,2]
[399919973,1766874641379,-500.0,0.00014411,2]
[399919974,1766874641388,-500.0,0.00014411,2]
[399919975,1766874641398,-500.0,0.00014411,2]
[399919976,1766874641409,-500.0,0.00014411,2]
[399919977,1766874641419,-465.18609977,0.00014411,2]
[399919978,1766874641428,-500.0,0.00014411,2]
[399919979,1766874641438,-849.63552329,0.00014411,2]
[399919980,1766874641450,-300.0,0.00014411,2]
[399919981,1766874641460,-300.0,0.00014411,2]
[399919982,1766874641469,-300.0,0.00014411,2]
[399919983,1766874641479,-300.0,0.00014411,2]
[399919984,1766874641489,-300.0,0.00014411,2]
[399919985,1766874641499,-1200.0,0.00014412,2]
[399919986,1766874641508,-50000.0,0.00014413,2]
[399919987,1766874641518,-563.06619497,0.00014418,2]
[399919988,1766874641527,-999.13313325,0.00014421,2]
[399919989,1766874641537,-539.04629716,0.00014427,2]
[399919990,1766874641548,-331.0,0.0001443,2]
[399919991,1766874641558,-500.0,0.00014436,2]
[399919992,1766874641568,-500.0,0.00014436,2]
[399919993,1766874641578,-376.4641703,0.00014436,2]
[399919994,1766874641588,-524.17649869,0.00014436,2]
[399919995,1766874641598,-193.36987733,0.00014436,2]
[399919996,1766874641608,-500.0,0.00014436,2]
[399919997,1766874641617,-500.0,0.00014436,2]
[399919998,1766874641627,-1212.7111758,0.00014436,2]
[399919999,1766874641637,-952.7023035,0.00014437,2]
[399920000,1766874641647,-162.4628668,0.00014542,2]
[399920001,1766874641657,-500.0,0.0001465,2]
[399920002,1766874641669,-500.0,0.0001465,2]
[399920003,1766874641679,-500.0,0.0001465,2]
[399920004,1766874641690,-500.0,0.0001465,2]
[399920005,1766874641700,-500.0,0.0001465,2]
[399920006,1766874641711,-500.0,0.0001465,2]
[399920007,1766874641721,-520.55172029,0.0001465,2]
[399920008,1766874641731,-500.0,0.0001465,2]
[399920009,1766874641741,-500.0,0.0001465,2]
[399920010,1766874641753,-517.02585781,0.0001465,2]
[399920011,1766874641763,-200.0,0.00014948,2]
[399920012,1766874641772,-476.79796843,0.00015,2]
[399920013,1766874641782,-200.16641415,0.00015059,2]
[399920014,1766874641792,-337.48895,0.00015068,2]
[399920015,1766874641802,-273.38391694,0.0001515,20]
[399920016,1766874641812,-100000.0,0.00015174,2]
[399920017,1766874641821,-151.0,0.000152,2]
[399920018,1766874641832,-461.67526834,0.000152,2]
[399920019,1766874641841,-176.74490203,0.000152,2]
[399920020,1766874641850,-500.0,0.000152,2]
[399920021,1766874641860,-500.0,0.000152,2]
[399920022,1766874641869,-500.0,0.000152,2]
[399920023,1766874641878,-546.06754988,0.000152,2]
[399920024,1766874641887,-151.0,0.000152,2]
[399920025,1766874641897,-151.0,0.000152,2]
[399920026,1766874641906,-151.0,0.000152,2]
[399920027,1766874641916,-151.0,0.000152,2]
[399920028,1766874641925,-151.0,0.000152,2]
[399920029,1766874641934,-151.0,0.000152,2]
[399920030,1766874641944,-151.0,0.000152,2]
[399920031,1766874641955,-151.0,0.000152,2]
[399920032,1766874641964,-151.0,0.000152,2]
[399920033,1766874641973,-151.0,0.000152,2]
[399920034,1766874641982,-151.0,0.000152,2]
[399920035,1766874641992,-151.0,0.000152,2]
[399920036,1766874642001,-151.0,0.000152,2]
[399920037,1766874642010,-151.0,0.000152,2]
[399920038,1766874642020,-151.0,0.000152,2]
[399920039,1766874642030,-151.0,0.000152,2]
[399920040,1766874642039,-151.0,0.000152,2]
[399920041,1766874642049,-4422.89250268,0.00015251,2]
[399920042,1766874642058,-2312.84934493,0.000154,2]
[399920043,1766874642068,-478.75725327,0.00015748,2]
[399920044,1766874642077,-420.0,0.00015781,2]
[399920045,1766874642087,-420.0,0.00015781,2]
[399920046,1766874642097,-420.0,0.00015781,2]
[399920047,1766874642106,-420.0,0.00015781,2]
[399920048,1766874642116,-1680.0,0.00015782,2]
[399920049,1766874642125,-1680.0,0.00015851,2]
[399920050,1766874642134,-386.86825614,0.00015947,2]
[399920051,1766874642143,-496.47127164,0.00016296,2]
[399920052,1766874642153,-306.45838396,0.0001641,2]
[399920053,1766874642164,-202.78625416,0.00016438,2]
[399920054,1766874642174,-355.50253473,0.00016455,2]
[399920055,1766874642184,-640.5325253,0.00016663,2]
[399920056,1766874642194,-442.13514988,0.00016717,2]
[399920057,1766874642203,-554.22637325,0.00016844,2]
[399920058,1766874642213,-155.0,0.00017171,2]
[399920059,1766874642222,-155.0,0.00017171,2]
[399920060,1766874642232,-155.0,0.00017171,2]
[399920061,1766874642241,-155.0,0.00017171,2]
[399920062,1766874642251,-155.0,0.00017171,2]
[399920063,1766874642260,-155.0,0.00017171,2]
[399920064,1766874642270,-155.0,0.00017171,2]
[399920065,1766874642281,-155.0,0.00017171,2]
[399920066,1766874642291,-155.0,0.00017171,2]
[399920067,1766874642301,-155.0,0.00017171,2]
[399920068,1766874642310,-155.0,0.00017171,2]
[399920069,1766874642320,-155.0,0.00017171,2]
[399920071,1766874642330,-155.0,0.00017171,2]
[399920072,1766874642340,-155.0,0.00017171,2]
[399920074,1766874642350,-155.0,0.00017171,2]
[399920075,1766874642360,-155.0,0.00017171,2]
[399920077,1766874642370,-155.0,0.00017171,2]
[399920079,1766874642379,-155.0,0.00017171,2]
[399920081,1766874642389,-155.0,0.00017171,2]
[399920082,1766874642399,-155.0,0.00017171,2]
[399920083,1766874642408,-155.0,0.00017171,2]
[399920084,1766874642418,-155.0,0.00017171,2]
[399920085,1766874642427,-155.0,0.00017171,2]
[399920086,1766874642437,-155.0,0.00017171,2]
[399920087,1766874642447,-155.0,0.00017171,2]
[399920088,1766874642457,-155.0,0.00017171,2]
[399920089,1766874642467,-795.0,0.00017238,2]
[399920090,1766874642476,-180.0,0.00017282,2]
[399920091,1766874642486,-196.0,0.00017282,2]
[399920092,1766874642495,-587.0,0.00017282,2]
[399920093,1766874642506,-413.0,0.00017282,2]
[399920094,1766874642516,-2066.0,0.00017283,2]
[399920095,1766874642526,-795.0,0.00017355,2]
[399920096,1766874642535,-795.0,0.00017365,2]
[399920097,1766874642545,-385.9497486,0.00017397,2]
[399920098,1766874642555,-795.0,0.00017408,2]
[399920099,1766874642565,-795.0,0.00017431,2]
[399920100,1766874642575,-2351.0,0.00017436,2]
[399920101,1766874642584,-795.0,0.00017554,2]
[399920102,1766874642594,-795.0,0.00017618,2]
[399920103,1766874642603,-1230.0,0.00017663,2]
[399920104,1766874642613,-160.0,0.00017667,2]
[399920105,1766874642623,-1230.0,0.0001769,2]
[399920106,1766874642632,-1230.0,0.00017763,2]
[399920107,1766874642643,-1230.0,0.00017823,2]
[399920108,1766874642652,-1230.0,0.00017848,2]
[399920109,1766874642662,-1230.0,0.00018002,2]
[399920110,1766874642673,-1230.0,0.00018117,2]
[399920111,1766874642683,-1230.0,0.0001814,2]
[399920112,1766874642692,-260.0,0.00018215,2]
[399920113,1766874642702,-600.0,0.00018356,7]
[399920114,1766874642711,-1230.0,0.00018363,2]
[399920115,1766874642721,-353.20627304,0.0001841,2]
[399920116,1766874642730,-337.48895,0.00018493,2]
[399920117,1766874642740,-243211.3759569,0.000185,2]
[399920118,1766874642755,-1833.34169242,0.000185,2]
[399920119,1766874642767,-72506.71944809,0.000185,2]
[399920120,1766874642860,-283.66210622,0.000185,2]
[399920121,1766874642924,-35298.12764688,0.000185,2]
[399920127,1766874645900,-360.29954548,0.00015611,2]
[399920128,1766874645911,-155.0,0.00017171,2]
[399920129,1766874645922,-171.63752996,0.00017171,2]
[399920130,1766874645931,-181.88539492,0.000185,2]
[399920131,1766874645944,-110121.17899736,0.000185,2]
[399920132,1766874645954,-1000.0,0.000185,2]
[399920133,1766874645963,-1230.0,0.00018585,2]
[399920134,1766874645973,-1230.0,0.00018652,2]
[399920135,1766874645983,-1230.0,0.00018752,2]
[399920136,1766874645993,-360.0,0.00018763,2]
[399920137,1766874646003,-1230.0,0.00018824,2]
[399920138,1766874646013,-1230.0,0.00018849,2]
[399920139,1766874646023,-151.0,0.00018856,2]
[399920140,1766874646033,-1230.0,0.00018862,2]
[399920141,1766874646042,-302.72757545,0.000189,2]
[399920142,1766874646052,-302.72757545,0.000189,2]
[399920143,1766874646062,-823.0,0.00018926,2]
[399920144,1766874646073,-160.0,0.00018954,2]
[399920145,1766874646083,-1041.66666667,0.00018954,2]
[399920146,1766874646093,-200.17769572,0.00018986,7]
[399920147,1766874646104,-155.0,0.00018988,2]
[399920148,1766874646117,-155.0,0.00018988,2]
[399920149,1766874646127,-155.0,0.00018988,2]
[399920150,1766874646137,-155.0,0.00018988,2]
[399920151,1766874646147,-32469.34588868,0.00019,2]
[399920152,1766874646157,-2603.49,0.00019,2]
[399920153,1766874646167,-17922.42820171,0.00019,2]
[399920154,1766874646177,-1000.0,0.00019,2]
[399920155,1766874646187,-150.0,0.00019038,2]
[399920156,1766874646197,-150.0,0.00019038,2]
[399920157,1766874646207,-302.72757545,0.00019089,2]
[399920158,1766874646217,-302.72757545,0.00019089,2]
[399920159,1766874646226,-151.0,0.00019178,2]
[399920160,1766874646236,-151.0,0.00019178,2]
[399920161,1766874646245,-151.0,0.00019178,2]
[399920162,1766874646255,-151.0,0.00019178,2]
[399920163,1766874646265,-151.0,0.00019178,2]
[399920164,1766874646275,-151.0,0.00019178,2]
[399920165,1766874646285,-151.0,0.00019178,2]
[399920166,1766874646295,-151.0,0.00019178,2]
[399920167,1766874646306,-151.0,0.00019178,2]
[399920168,1766874646316,-222.50442,0.00019178,2]
[399920169,1766874646326,-151.0,0.00019178,2]
[399920170,1766874646336,-158.843523,0.00019178,2]
[399920171,1766874646346,-2964.771331,0.00019178,2]
[399920172,1766874646357,-2964.771331,0.00019178,2]
[399920173,1766874646367,-2964.771331,0.00019178,2]
[399920174,1766874646377,-2964.771331,0.00019178,2]
[399920175,1766874646387,-2964.771331,0.00019178,2]
[399920176,1766874646397,-2964.771331,0.00019178,2]
[399920177,1766874646408,-2964.771331,0.00019178,2]
[399920178,1766874646418,-2964.771331,0.00019178,2]
[399920179,1766874646428,-2964.771331,0.00019178,2]
[399920180,1766874646438,-2964.771331,0.00019178,2]
[399920181,1766874646449,-2964.771331,0.00019178,2]
[399920182,1766874646459,-2964.771331,0.00019178,2]
[399920183,1766874646470,-2964.771331,0.00019178,2]
[399920184,1766874646482,-2964.771331,0.00019178,2]
[399920185,1766874646493,-2964.771331,0.00019178,2]
[399920186,1766874646503,-2964.771331,0.00019178,2]
[399920187,1766874646513,-2964.771331,0.00019178,2]
[399920188,1766874646524,-2964.771331,0.00019178,2]
[399920189,1766874646534,-2964.771331,0.00019178,2]
[399920190,1766874646544,-2964.771339,0.00019178,2]
[399920191,1766874646554,-150.0,0.00019178,2]
[399920192,1766874646564,-3292.0,0.0001918,2]
[399920193,1766874646574,-12552.87,0.000192,2]
[399920194,1766874646585,-1432.19,0.000192,2]
[399920195,1766874646597,-156.52,0.000192,2]
[399920196,1766874646606,-166.28,0.000192,2]
[399920197,1766874646616,-153.41,0.000192,2]
[399920198,1766874646627,-1230.0,0.00019261,2]
[399920199,1766874646637,-1230.0,0.0001927,2]
[399920200,1766874646646,-302.72757545,0.00019278,2]
[399920202,1766874646657,-302.72757545,0.00019278,2]
[399920204,1766874646667,-1230.0,0.00019278,2]
[399920205,1766874646680,-460.0,0.00019311,2]
[399920206,1766874646690,-300.0,0.00019315,2]
[399920207,1766874646701,-600.0,0.00019452,7]
[399920208,1766874646711,-450.0,0.00019452,2]
[399920209,1766874646721,-151.0,0.0001946,2]
[399920210,1766874646731,-302.72757545,0.00019467,2]
[399920211,1766874646742,-302.72757545,0.00019467,2]
[399920212,1766874646752,-6000.60256051,0.000195,2]
[399920213,1766874646762,-1000.0,0.000195,2]
[399920214,1766874646772,-1424.19313227,0.00019574,2]
[399920215,1766874646782,-600.0,0.00019589,2]
[399920216,1766874646791,-302.72757545,0.00019656,2]
[399920217,1766874646801,-302.72757545,0.00019656,2]
[399920218,1766874646811,-705.38851496,0.00019726,2]
[399920219,1766874646821,-454.09136318,0.00019845,4]
[399920220,1766874646831,-454.09136318,0.00019845,4]
[399920221,1766874646841,-560.0,0.00019858,2]
[399920222,1766874646852,-546.30596573,0.000199,2]
[399920223,1766874646862,-34025.49033731,0.00019998,2]
[399920224,1766874646883,-15541.48327209,0.00019998,2]
[399920225,1766874646909,-293.02027726,0.00018443,7]
[399920226,1766874646919,-2455.38369134,0.00019998,2]
[399920227,1766874647067,1611.36041199,0.00014311,2]
[399920228,1766874647751,-2080.75000043,0.00019998,2]
[399920229,1766874760897,150.0,7.132e-05,2]
[399920230,1766874761345,150.0,7.472e-05,2]
[399920231,1766874761774,150.0,7.811e-05,2]
[399920232,1766874762202,150.0,8.151e-05,2]
[399920233,1766874762674,150.0,8.491e-05,2]
[399920234,1766874763112,150.0,8.83e-05,2]
[399920235,1766874763575,150.0,9.17e-05,2]
[399920236,1766874783651,35612.22016956,0.00014312,2]
[399920237,1766874842418,300.0,0.00014311,2]
[399920238,1766874849203,500.0,0.00013699,2]
[399920239,1766874849260,500.0,0.00014247,2]
[399920240,1766874895767,500.0,0.00014311,2]
[399920241,1766874896106,202.13092421,0.00014311,2]
[399920242,1766874896949,500.0,0.00014311,2]
[399920243,1766874897313,500.0,0.00014311,2]
[399920244,1766874897639,500.0,0.00014311,2]
[399920245,1766874897999,500.0,0.00014311,2]
[399920246,1766874898390,500.0,0.00014311,2]
[399920247,1766874898461,500.0,0.00014311,2]
[399920248,1766874898510,500.0,0.00014311,2]
[399920249,1766874898984,470.53513666,0.00014311,2]
[399920250,1766874899014,500.0,0.00014311,2]
[399920251,1766874899451,500.0,0.00014311,2]
[399920252,1766874901248,500.0,0.00014311,2]
[399920253,1766874902149,300.0,0.00014311,2]
[399920254,1766874904521,1200.0,0.00014311,2]
[399920255,1766874906261,500.0,0.00014311,2]
[399920256,1766874906492,500.0,0.00014311,2]
[399920257,1766874907383,27.34393913,0.00014311,2]
[399920258,1766874907416,472.65606087,0.00014311,2]
[399920259,1766874907573,500.0,0.00014311,2]
[399920260,1766874907708,500.0,0.00014311,2]
[399920261,1766874907773,500.0,0.00014311,2]
[399920262,1766874907808,500.0,0.00014311,2]
[399920263,1766874907850,500.0,0.00014311,2]
[399920264,1766874907886,500.0,0.00014311,2]
[399920265,1766874907934,500.0,0.00014311,2]
[399920266,1766874907972,546.6499606,0.00014311,2]
[399920267,1766874908018,500.0,0.00014311,2]
[399920268,1766874908059,500.0,0.00014311,2]
[399920269,1766874908132,500.0,0.00014311,2]
[399920270,1766874908166,500.0,0.00014311,2]
[399920271,1766874908211,500.0,0.00014311,2]
[399920272,1766874908256,500.0,0.00014311,2]
[399920273,1766874908291,500.0,0.00014311,2]
[399920274,1766874908326,500.0,0.00014311,2]
[399920275,1766874908380,500.0,0.00014311,2]
[399920276,1766874908415,500.0,0.00014311,2]
[399920277,1766874908451,480.70397853,0.00014311,2]
[399920278,1766874910379,-19.29602147,0.00014311,2]
[399920279,1766874910410,-500.0,0.00014311,2]
[399920280,1766874910440,-500.0,0.00014311,2]
[399920281,1766874910472,-500.0,0.00014311,2]
[399920282,1766874910502,-500.0,0.00014311,2]
[399920283,1766874910531,-500.0,0.00014311,2]
[399920284,1766874910561,-555.62896468,0.00014311,2]
[399920285,1766874910592,-500.0,0.00014311,2]
[399920286,1766874910620,-500.0,0.00014311,2]
[399920287,1766874910649,-500.0,0.00014311,2]
[399920288,1766874910845,-350.1600277,0.00014311,2]
[399920289,1766874913518,-149.8399723,0.00014311,2]
[399920290,1766874913548,-500.0,0.00014311,2]
[399920291,1766874913576,-500.0,0.00014311,2]
[399920292,1766874913607,-500.0,0.00014311,2]
[399920293,1766874913638,-500.0,0.00014311,2]
[399920294,1766874913666,-500.0,0.00014311,2]
[399920295,1766874913695,-500.0,0.00014311,2]
[399920296,1766874913723,-500.0,0.00014311,2]
[399920297,1766874913751,-500.0,0.00014311,2]
[399920298,1766874913784,-500.0,0.00014311,2]
[399920299,1766874913812,-207.94422918,0.00014311,2]
[399920300,1766874914046,-284.44159704,0.00014311,2]
[399920301,1766874914227,-500.0,0.00014311,2]
[399920302,1766874914258,-500.0,0.00014311,2]
[399920303,1766874914288,-500.0,0.00014311,2]
[399920304,1766874914319,-500.0,0.00014311,2]
[399920305,1766874914349,-500.0,0.00014311,2]
[399920306,1766874914380,-500.0,0.00014311,2]
[399920307,1766874914410,-500.0,0.00014311,2]
[399920308,1766874914440,-500.0,0.00014311,2]
[399920309,1766874914470,-500.0,0.00014311,2]
[399920310,1766874914612,-500.0,0.00014311,2]
[399920311,1766874914644,-500.0,0.00014311,2]
[399920312,1766874914672,-500.0,0.00014311,2]
[399920313,1766874914702,-500.0,0.00014311,2]
[399920314,1766874914734,-500.0,0.00014311,2]
[399920315,1766874914767,-500.0,0.00014311,2]
[399920316,1766874914800,-500.0,0.00014311,2]
[399920317,1766874914831,-500.0,0.00014311,2]
[399920318,1766874914862,-500.0,0.00014311,2]
[399920319,1766874914891,-500.0,0.00014311,2]
[399920320,1766874914938,-500.0,0.00014311,2]
[399920321,1766874914970,-500.0,0.00014311,2]
[399920322,1766874915001,-500.0,0.00014311,2]
[399920323,1766874915183,-500.0,0.00014311,2]
[399920324,1766874915215,-500.0,0.00014311,2]
[399920325,1766874915247,-500.0,0.00014311,2]
[399920326,1766874915276,-500.0,0.00014311,2]
[399920327,1766874915307,-500.0,0.00014311,2]
[399920328,1766874915342,-354.13979179,0.00014311,2]
[399920329,1766874915371,-500.0,0.00014311,2]
[399920330,1766874915587,291.73041642,0.00014168,2]
[399920331,1766874915623,-4708.26958358,0.00014168,2]
[399920332,1766874922366,583.47083284,0.0001431,2]